bitfinex/quotes_BTCUSD_20250328
["timestamp","ask_amount","ask_price","bid_price","bid_amount"]
[1743173118897,0.00344347,84515.0,84509.0,0.236659]
[1743173118898,0.236647,84514.0,84509.0,0.236659]
[1743173119097,0.24008947,84515.0,84509.0,0.236659]
[1743173119301,0.236652,84513.0,84507.0,0.248494]
[1743173119505,0.236655,84512.0,84508.0,0.236663]
[1743173119710,0.236655,84512.0,84507.0,0.248494]
[1743173119916,0.002,84509.0,84507.0,0.248494]
[1743173120120,0.002,84509.0,84508.0,0.236663]
[1743173120324,0.002,84512.0,84508.0,0.236663]
[1743173120725,0.014832,84513.0,84501.0,0.011834]
[1743173120935,0.236656,84511.0,84506.0,0.236667]
[1743173121160,0.002,84509.0,84508.0,0.236663]
[1743173121291,0.002,84509.0,84503.0,0.248508]
[1743173121494,0.002,84509.0,84505.0,0.236671]
[1743173121695,0.002,84509.0,84503.0,0.011833]
[1743173121696,0.248492,84511.0,84504.0,0.011833]
[1743173121946,0.236663,84509.0,84505.0,0.236672]
[1743173122167,0.003,84513.0,84500.0,0.06]
[1743173122168,0.548517,84501.0,84500.0,0.06]
[1743173122333,1.30627549,84501.0,84500.0,0.06]
[1743173122743,0.548543,84492.0,84490.0,0.000169]
[1743173123023,1.1309564,84491.0,84490.0,1e-06]
[1743173123220,1.12810364,84491.0,84490.0,1e-06]
[1743173125115,1.28575664,84491.0,84490.0,1e-06]
[1743173125317,1.28575664,84491.0,84490.0,0.100001]
[1743173125517,1.171499,84491.0,84490.0,0.100001]
[1743173125928,0.548579,84480.0,84461.0,0.0001689]
[1743173126150,0.79939664,84480.0,84461.0,0.0001689]
[1743173126351,0.81123887,84480.0,84461.0,0.0001689]
[1743173126761,0.82023267,84480.0,84461.0,0.0001689]
[1743173127115,0.82023267,84480.0,84479.0,0.00030218]
[1743173127314,0.82423267,84480.0,84479.0,0.00030218]
[1743173127542,0.83877352,84480.0,84479.0,0.00030218]
[1743173128142,0.92117352,84480.0,84479.0,0.00030218]
[1743173128316,0.98147636,84480.0,84479.0,0.00030218]
[1743173128544,1.33887352,84480.0,84479.0,0.00030218]
[1743173129053,1.33487352,84480.0,84479.0,0.00030218]
[1743173129458,1.33987352,84480.0,84479.0,0.00030218]
[1743173129664,1.33487352,84480.0,84479.0,0.00030218]
[1743173129884,1.33987352,84480.0,84479.0,0.00030218]
[1743173130417,1.42813524,84480.0,84479.0,0.00030218]
[1743173130984,1.47623524,84480.0,84479.0,0.00030218]
[1743173131177,1.47623524,84480.0,84461.0,0.0001689]
[1743173131178,0.548631,84462.0,84461.0,0.0001689]
[1743173131389,1.21694864,84462.0,84461.0,0.00030194]
[1743173132261,1.102691,84462.0,84461.0,0.00030194]
[1743173132488,0.7177,84462.0,84461.0,0.00030194]
[1743173132694,0.004,84462.0,84461.0,0.00030194]
[1743173133086,0.009,84462.0,84461.0,0.01214094]
[1743173133288,0.009,84462.0,84461.0,0.00030194]
[1743173133502,0.009,84462.0,84461.0,0.01214094]
[1743173133689,0.009,84462.0,84461.0,0.12639858]
[1743173134221,0.004,84462.0,84461.0,0.12639858]
[1743173134636,0.005,84462.0,84461.0,0.12876627]
[1743173134886,0.005,84462.0,84461.0,0.12639858]
[1743173135507,0.001,84462.0,84461.0,0.12639858]
[1743173135994,0.002,84462.0,84461.0,0.12639858]
[1743173136156,0.002,84462.0,84461.0,0.12876627]
[1743173136377,0.002,84462.0,84461.0,0.12876619]
[1743173137612,0.002,84462.0,84461.0,0.21006619]
[1743173138486,0.002,84462.0,84461.0,0.20769858]
[1743173138705,0.001,84462.0,84461.0,0.20769858]
[1743173138899,0.001,84462.0,84461.0,0.09344094]
[1743173139131,0.012839,84462.0,84461.0,0.00030194]
[1743173139281,0.001,84462.0,84461.0,0.00030194]
[1743173139654,0.001,84462.0,84461.0,0.01214094]
[1743173141433,0.001,84462.0,84461.0,0.1287663]
[1743173141683,0.001,84462.0,84461.0,0.00266966]
[1743173141684,0.36388864,84462.0,84461.0,0.00266966]
[1743173141880,0.67572169,84462.0,84461.0,0.00030194]
[1743173142084,0.69026254,84462.0,84461.0,0.00030194]
[1743173142466,0.67572169,84462.0,84461.0,0.00030194]
[1743173142660,0.68449871,84462.0,84461.0,0.00030194]
[1743173142911,0.68349871,84462.0,84461.0,0.00030194]
[1743173143110,0.68849871,84462.0,84461.0,0.00030194]
[1743173143326,0.69249871,84462.0,84461.0,0.00030194]
[1743173143533,0.71598001,84462.0,84461.0,0.00030194]
[1743173143666,0.71598001,84462.0,84461.0,0.10030194]
[1743173143868,0.73796237,84462.0,84461.0,0.10030194]
[1743173144071,0.58794535,84462.0,84461.0,0.10030194]
[1743173145542,0.59294535,84462.0,84461.0,0.10030194]
[1743173145741,0.59294535,84462.0,84461.0,0.20030194]
[1743173146153,0.72174384,84462.0,84461.0,0.20030194]
[1743173146358,0.93656384,84462.0,84461.0,0.20030194]
[1743173147151,0.59294535,84462.0,84461.0,0.20030194]
[1743173147803,0.59294535,84462.0,84461.0,0.30030194]
[1743173149181,0.0324813,84462.0,84461.0,0.30030194]
[1743173149386,0.29323331,84462.0,84461.0,0.30030194]
[1743173150235,0.812308,84462.0,84461.0,0.30030194]
[1743173150440,0.70749095,84462.0,84461.0,0.30030194]
[1743173152122,0.59323331,84462.0,84461.0,0.40030194]
[1743173155821,0.02112101,84462.0,84461.0,0.63709694]
[1743173156033,0.02112101,84462.0,84461.0,0.64893594]
[1743173156234,0.009,84462.0,84461.0,0.64893594]
[1743173156445,0.009,84462.0,84461.0,0.66103014]
[1743173156567,0.009,84462.0,84461.0,0.77528778]
[1743173156777,0.009,84462.0,84461.0,0.85478778]
[1743173156983,0.005,84462.0,84461.0,0.89170015]
[1743173157409,0.009,84462.0,84461.0,0.89170015]
[1743173157621,0.005,84462.0,84461.0,0.89170015]
[1743173158051,0.0003382,84479.0,84475.0,0.236754]
[1743173158380,0.2370832,84479.0,84474.0,0.248596]
[1743173158588,0.0121752,84479.0,84473.0,0.236759]
[1743173158943,0.2489222,84479.0,84474.0,0.236757]
[1743173159148,0.0003382,84479.0,84478.0,0.236748]
[1743173159375,0.0003382,84479.0,84473.0,0.23676]
[1743173159526,0.0003382,84479.0,84475.0,0.236755]
[1743173159686,0.2400842,84479.0,84473.0,0.248597]
[1743173159891,0.23675,84478.0,84474.0,0.236756]
[1743173160149,0.0003382,84479.0,84475.0,0.236756]
[1743173160399,0.011838,84469.0,84461.0,0.5086004]
[1743173160606,0.23677,84471.0,84464.0,0.011839]
[1743173160811,0.236764,84472.0,84466.0,0.011839]
[1743173161017,0.236764,84472.0,84469.0,0.236772]
[1743173161215,0.236769,84471.0,84467.0,0.248616]
[1743173161436,0.23677,84470.0,84466.0,0.248615]
[1743173161639,0.23677,84470.0,84466.0,0.236776]
[1743173161842,0.236761,84474.0,84470.0,0.011838]
[1743173162015,0.236761,84474.0,84470.0,0.248605]
[1743173162254,0.248593,84476.0,84469.0,0.011838]
[1743173162431,0.001,84472.0,84471.0,0.236765]
[1743173162730,0.0003382,84479.0,84471.0,0.248603]
[1743173162961,0.0003382,84479.0,84476.0,0.23675]
[1743173163144,0.001,84474.0,84473.0,0.236759]
[1743173163348,0.002,84474.0,84473.0,0.236759]
[1743173163543,0.002,84474.0,84473.0,0.248597]
[1743173163779,0.001,84474.0,84451.0,0.3906951]
[1743173163976,0.001,84474.0,84471.0,0.236765]
[1743173164184,0.001,84474.0,84473.0,0.2486]
[1743173164389,0.0003382,84479.0,84477.0,0.236749]
[1743173164572,0.0003382,84479.0,84478.0,0.248585]
[1743173164798,0.0003382,84479.0,84477.0,0.236749]
[1743173164799,0.0023382,84479.0,84477.0,0.236749]
[1743173165051,0.0023382,84479.0,84476.0,0.236753]
[1743173165287,0.2370832,84479.0,84475.0,0.236753]
[1743173165518,0.2370832,84479.0,84473.0,0.011838]
[1743173165519,0.236748,84478.0,84474.0,0.236758]
[1743173165774,0.2370832,84479.0,84461.0,0.40030194]
[1743173165775,0.248631,84462.0,84461.0,0.40030194]
[1743173166015,1.08058864,84462.0,84461.0,0.40030194]
[1743173166256,1.33180628,84462.0,84461.0,0.40030194]
[1743173166660,1.36738428,84462.0,84461.0,0.40030194]
[1743173166830,1.25312664,84462.0,84461.0,0.40030194]
[1743173167445,1.14790225,84462.0,84461.0,0.40030194]
[1743173167659,1.11232425,84462.0,84461.0,0.40030194]
[1743173167863,1.11232425,84462.0,84461.0,0.50030194]
[1743173168079,1.11732425,84462.0,84461.0,0.50030194]
[1743173168416,0.74701658,84462.0,84461.0,0.50030194]
[1743173168729,0.4227,84462.0,84461.0,0.74893594]
[1743173169020,0.005,84462.0,84461.0,0.86319358]
[1743173169164,0.009,84462.0,84461.0,0.86319358]
[1743173169368,0.009,84462.0,84461.0,1.09366584]
[1743173169585,0.004,84462.0,84461.0,1.16194907]
[1743173169849,0.004,84462.0,84461.0,1.15019681]
[1743173170000,0.0003382,84479.0,84471.0,0.248605]
[1743173171763,0.0003382,84479.0,84478.0,0.248585]
[1743173172994,0.0023382,84479.0,84478.0,0.248585]
[1743173173194,0.0043382,84479.0,84478.0,0.248585]
[1743173174807,0.0043382,84479.0,84478.0,0.26036104]
[1743173175005,0.02289227,84479.0,84478.0,0.26036104]
[1743173176959,0.0043382,84479.0,84478.0,0.26036104]
[1743173177108,0.0023382,84479.0,84478.0,0.26036104]
[1743173177313,0.0033382,84479.0,84478.0,0.26036104]
[1743173177514,2e-07,84479.0,84478.0,0.45131868]
[1743173178682,2e-07,84479.0,84478.0,0.50011868]
[1743173178914,0.01178597,84512.0,84511.0,0.248487]
[1743173179120,0.01178597,84512.0,84511.0,0.236655]
[1743173179329,0.3,84513.0,84511.0,0.236655]
[1743173179533,0.01159585,84514.0,84513.0,0.248481]
[1743173179734,0.000338,84515.0,84514.0,0.011832]
[1743173179957,0.000338,84515.0,84510.0,0.011832]
[1743173179958,0.000338,84515.0,84500.0,0.011834]
[1743173180203,0.000338,84515.0,84481.0,1.183695]
[1743173180204,0.011835,84492.0,84478.0,0.011837]
[1743173180406,0.011835,84492.0,84450.0,0.0001688]
[1743173180407,0.236763,84473.0,84464.0,0.236787]
[1743173180606,0.536758,84475.0,84471.0,0.011838]
[1743173180814,0.3,84475.0,84472.0,0.236763]
[1743173181221,0.536757,84475.0,84470.0,0.236768]
[1743173181427,0.3,84475.0,84470.0,0.236768]
[1743173181643,0.536757,84475.0,84471.0,0.236767]
[1743173181987,0.3,84473.0,84471.0,0.00013304]
[1743173182187,0.3,84476.0,84472.0,0.011838]
[1743173182385,0.3,84476.0,84474.0,0.236756]
[1743173182611,0.3,84476.0,84473.0,0.248596]
[1743173182816,0.3,84476.0,84474.0,0.236758]
[1743173183015,0.3,84476.0,84473.0,0.248596]
[1743173183016,0.002,84475.0,84473.0,0.248596]
[1743173183172,0.003,84475.0,84473.0,0.248596]
[1743173183380,0.001,84475.0,84474.0,0.248596]
[1743173183781,0.001,84475.0,84471.0,0.00013304]
[1743173184009,0.2486,84473.0,84471.0,0.00013304]
[1743173184474,0.35490842,84472.0,84471.0,0.00013304]
[1743173184623,0.42609564,84472.0,84471.0,0.00013304]
[1743173184828,0.93523649,84472.0,84471.0,0.00013304]
[1743173185027,0.93523649,84472.0,84439.0,0.011842]
[1743173185028,0.01184,84457.0,84456.0,7e-07]
[1743173185340,0.01184,84457.0,84419.0,0.0120141]
[1743173185341,0.02638285,84445.0,84419.0,0.0001691]
[1743173185510,0.72563325,84445.0,84419.0,0.0001691]
[1743173185687,0.72278049,84445.0,84419.0,0.0001691]
[1743173185882,0.72278049,84445.0,84420.0,0.236909]
[1743173186061,0.72278049,84445.0,84422.0,0.236904]
[1743173186495,0.70823964,84445.0,84431.0,0.011843]
[1743173186690,0.71223964,84445.0,84431.0,0.248722]
[1743173187046,0.71223964,84445.0,84429.0,0.236883]
[1743173187386,0.71223964,84445.0,84430.0,0.236881]
[1743173187596,0.71223964,84445.0,84429.0,0.248727]
[1743173187796,0.56139025,84445.0,84433.0,0.236873]
[1743173188008,0.56539025,84445.0,84430.0,0.236882]
[1743173188209,0.56539025,84445.0,84431.0,0.236878]
[1743173188409,0.56539025,84445.0,84431.0,0.248721]
[1743173188698,0.56539025,84445.0,84434.0,0.23687]
[1743173188899,0.56539025,84445.0,84430.0,0.011844]
[1743173189129,0.56539025,84445.0,84402.0,1.037241]
[1743173189130,0.011845,84423.0,84413.0,0.236929]
[1743173189307,0.548722,84431.0,84430.0,0.00013331]
[1743173190514,0.966422,84431.0,84430.0,0.00013331]
[1743173190655,1.09282249,84431.0,84430.0,0.00013331]
[1743173191583,1.11613411,84431.0,84430.0,0.00013331]
[1743173192000,1.23239175,84431.0,84430.0,0.00013331]
[1743173192378,1.23439175,84431.0,84430.0,0.00013331]
[1743173192581,1.23239175,84431.0,84430.0,0.00013331]
[1743173193135,1.23239175,84431.0,84430.0,0.00030221]
[1743173193341,1.23039175,84431.0,84430.0,0.00030221]
[1743173193545,1.17817496,84431.0,84430.0,0.00030221]
[1743173193751,1.18217496,84431.0,84430.0,0.00030221]
[1743173194170,1.18617496,84431.0,84430.0,0.00030221]
[1743173194582,1.18217496,84431.0,84430.0,0.00030221]
[1743173194789,1.18217496,84431.0,84419.0,0.0001691]
[1743173194790,0.548755,84420.0,84419.0,0.0001691]
[1743173194989,0.66301264,84420.0,84419.0,0.0001691]
[1743173195361,0.67755349,84420.0,84419.0,0.0001691]
[1743173196490,0.68255349,84420.0,84419.0,0.0001691]
[1743173196648,0.67755349,84420.0,84419.0,0.0001691]
[1743173197073,0.79222658,84420.0,84419.0,0.0001691]
[1743173197247,1.2188589,84420.0,84419.0,0.0001691]
[1743173197453,1.3062589,84420.0,84419.0,0.0001691]
[1743173197652,0.60923685,84406.0,84394.0,0.000169]
[1743173197902,0.60923685,84406.0,84405.0,0.00027536]
[1743173197903,1.50509567,84406.0,84405.0,0.00027536]
[1743173198117,1.57307909,84406.0,84405.0,0.00027536]
[1743173198696,1.57307909,84406.0,84405.0,3.6e-07]
[1743173198895,1.53823683,84406.0,84405.0,3.6e-07]
[1743173199101,1.54323683,84406.0,84405.0,3.6e-07]
[1743173199520,1.57807909,84406.0,84405.0,3.6e-07]
[1743173199902,1.57807909,84406.0,84386.0,0.0001689]
[1743173199903,0.537003,84387.0,84386.0,0.0001689]
[1743173200103,1.23367139,84387.0,84386.0,0.0001689]
[1743173200487,1.26639755,84387.0,84386.0,0.0001689]
[1743173200665,1.23363139,84387.0,84386.0,0.0001689]
[1743173200868,1.24256789,84387.0,84386.0,0.0001689]
[1743173201070,1.35682553,84387.0,84386.0,0.0001689]
[1743173201261,1.36082553,84387.0,84386.0,0.0001689]
[1743173201475,1.36082553,84387.0,84386.0,9e-07]
[1743173201476,1.36582553,84387.0,84386.0,9e-07]
[1743173201677,1.38682553,84387.0,84386.0,9e-07]
[1743173202090,1.39182553,84387.0,84386.0,9e-07]
[1743173202216,1.39582553,84387.0,84386.0,9e-07]
[1743173202417,1.39182553,84387.0,84386.0,9e-07]
[1743173202791,1.39182553,84387.0,84382.0,8e-07]
[1743173202792,0.59340485,84383.0,84382.0,8e-07]
[1743173203017,0.75676249,84383.0,84382.0,8e-07]
[1743173203224,0.75676249,84383.0,84359.0,0.0001689]
[1743173203225,0.248932,84360.0,84359.0,0.0001689]
[1743173203404,1.23366119,84360.0,84359.0,0.0001689]
[1743173203634,1.23366119,84360.0,84345.0,0.0001689]
[1743173203635,0.31454085,84359.0,84345.0,0.0001689]
[1743173203836,0.56351385,84346.0,84345.0,0.0001689]
[1743173204014,0.67777149,84346.0,84345.0,0.0001689]
[1743173204673,0.67777149,84346.0,84345.0,0.00030223]
[1743173204877,0.68659047,84346.0,84345.0,0.00030223]
[1743173205120,0.81056962,84346.0,84345.0,0.00030223]
[1743173205648,0.31381898,84346.0,84345.0,0.00030223]
[1743173206039,0.31381898,84346.0,84345.0,0.01215823]
[1743173206256,0.31381898,84346.0,84345.0,0.00030223]
[1743173206562,0.011854,84353.0,84345.0,0.01215823]
[1743173206563,0.248955,84353.0,84345.0,0.01215823]
[1743173206976,0.237098,84354.0,84348.0,0.237111]
[1743173207190,0.237098,84354.0,84345.0,0.00030223]
[1743173207191,0.011855,84351.0,84345.0,0.00030223]
[1743173207392,0.011855,84351.0,84346.0,0.237116]
[1743173207393,0.02377201,84349.0,84346.0,0.237116]
[1743173207563,0.02377201,84349.0,84345.0,0.00030223]
[1743173207969,0.005,84346.0,84345.0,0.23742223]
[1743173208172,0.005,84346.0,84345.0,0.24927823]
[1743173208381,0.02377201,84349.0,84348.0,0.237112]
[1743173208576,0.548973,84346.0,84345.0,0.00030223]
[1743173209759,0.537118,84346.0,84345.0,0.00030223]
[1743173209964,0.548973,84346.0,84345.0,0.00030223]
[1743173210136,0.537118,84346.0,84345.0,0.00030223]
[1743173210341,0.3,84346.0,84345.0,0.00030223]
[1743173210572,0.303,84346.0,84345.0,0.00030223]
[1743173211167,0.307,84346.0,84345.0,0.00030223]
[1743173212562,0.307,84346.0,84345.0,0.01215823]
[1743173214996,0.307,84346.0,84345.0,0.24927923]
[1743173217243,0.007,84346.0,84345.0,0.24927923]
[1743173217684,0.007,84346.0,84345.0,0.23742323]
[1743173217894,0.007,84346.0,84345.0,0.24927923]
[1743173218493,0.007,84346.0,84345.0,0.00030223]
[1743173218494,0.003,84346.0,84345.0,0.00030223]
[1743173218899,0.001,84346.0,84345.0,0.00030223]
[1743173219218,0.002,84346.0,84345.0,0.24927923]
[1743173219418,0.002,84346.0,84345.0,0.23742323]
[1743173219625,0.002,84346.0,84345.0,0.24927923]
[1743173219802,0.002,84346.0,84345.0,0.00030223]
[1743173220001,0.539118,84346.0,84345.0,0.00030223]
[1743173220477,0.002,84346.0,84345.0,0.24927923]
[1743173222360,0.002,84346.0,84345.0,0.32537923]
[1743173222692,0.0003384,84353.0,84352.0,0.248956]
[1743173222891,0.0003384,84353.0,84352.0,0.36321364]
[1743173223090,0.0003384,84353.0,84352.0,0.72763567]
[1743173223293,0.0003384,84353.0,84352.0,0.39988567]
[1743173223467,0.0003384,84353.0,84352.0,0.28562803]
[1743173224086,0.0003384,84353.0,84352.0,0.29667197]
[1743173224513,0.0003384,84353.0,84352.0,0.29967197]
[1743173225363,0.0003384,84353.0,84352.0,0.64656961]
[1743173225776,0.0003384,84353.0,84352.0,0.64856961]
[1743173226812,0.011851,84378.0,84370.0,0.011852]
[1743173227007,0.01160424,84372.0,84371.0,0.237046]
[1743173227197,0.03518184,84377.0,84373.0,0.23704]
[1743173227198,0.27221284,84377.0,84373.0,0.23704]
[1743173227405,0.237037,84375.0,84367.0,0.011852]
[1743173227539,0.248888,84375.0,84369.0,0.011852]
[1743173227746,0.237034,84376.0,84373.0,0.237042]
[1743173227946,0.24912995,84376.0,84372.0,0.237045]
[1743173228173,0.24912995,84376.0,84372.0,0.23717833]
[1743173228484,0.01209595,84376.0,84373.0,0.011852]
[1743173228686,0.02333084,84377.0,84375.0,0.237037]
[1743173228912,0.02333084,84377.0,84376.0,0.237034]
[1743173229229,0.02633084,84377.0,84376.0,0.248885]
[1743173229385,0.02333084,84377.0,84376.0,0.248885]
[1743173229795,0.02333084,84377.0,84376.0,0.237034]
[1743173230015,0.237034,84376.0,84372.0,0.24903033]
[1743173230192,0.26036284,84377.0,84372.0,0.24903033]
[1743173230388,0.02333084,84377.0,84375.0,0.237036]
[1743173230662,0.02333084,84377.0,84376.0,0.237034]
[1743173230852,0.02933084,84377.0,84374.0,0.011851]
[1743173231007,0.02933084,84377.0,84375.0,0.237036]
[1743173231215,0.26336184,84377.0,84374.0,0.248889]
[1743173231410,0.237037,84375.0,84372.0,0.00013333]
[1743173231616,0.237042,84373.0,84372.0,0.00013333]
[1743173231818,1.09522319,84373.0,84372.0,0.00013333]
[1743173232029,1.21962319,84373.0,84372.0,0.00013333]
[1743173233261,1.22362319,84373.0,84372.0,0.00013333]
[1743173233469,0.4215307,84373.0,84372.0,0.01198533]
[1743173233669,0.4215307,84373.0,84372.0,0.24903033]
[1743173233819,0.4215307,84373.0,84372.0,0.23717833]
[1743173234019,0.4215307,84373.0,84372.0,0.00013333]
[1743173234577,0.4215307,84373.0,84372.0,0.23717833]
[1743173234771,0.4255307,84373.0,84372.0,0.23717833]
[1743173234982,0.53978834,84373.0,84372.0,0.23717833]
[1743173235928,0.53978834,84373.0,84372.0,0.00013333]
[1743173236129,0.82862564,84373.0,84372.0,0.00013333]
[1743173236285,0.77683034,84373.0,84372.0,0.00013333]
[1743173236623,0.78868234,84373.0,84372.0,0.00013333]
[1743173236866,1.10322319,84373.0,84372.0,0.00013333]
[1743173237042,1.10322319,84373.0,84341.0,0.02405769]
[1743173237043,0.311854,84359.0,84347.0,0.011855]
[1743173237270,0.3,84357.0,84351.0,0.237102]
[1743173237472,0.3,84357.0,84356.0,0.23709]
[1743173238222,0.3,84357.0,84352.0,0.011855]
[1743173238223,0.53709,84357.0,84353.0,0.237095]
[1743173238420,0.3,84357.0,84356.0,0.23709]
[1743173238622,0.3,84357.0,84351.0,0.011855]
[1743173238832,0.3,84357.0,84356.0,0.23709]
[1743173239026,0.32857321,84357.0,84356.0,0.23709]
[1743173239229,0.32857321,84357.0,84356.0,0.248944]
[1743173239448,0.32357321,84357.0,84356.0,0.248944]
[1743173239649,0.32657321,84357.0,84356.0,0.248944]
[1743173239932,0.02657321,84357.0,84356.0,0.248944]
[1743173240133,0.003,84357.0,84356.0,0.248944]
[1743173240872,0.006,84357.0,84356.0,0.248944]
[1743173241635,0.003,84357.0,84356.0,0.248944]
[1743173241845,0.2,84373.0,84371.0,0.237047]
[1743173242068,0.0003382,84372.0,84368.0,0.237055]
[1743173242279,0.0003382,84372.0,84371.0,0.2489]
[1743173242506,0.2373832,84372.0,84367.0,0.237058]
[1743173242708,0.0003382,84372.0,84367.0,0.237057]
[1743173242866,0.237055,84369.0,84365.0,0.237064]
[1743173243067,0.0003382,84372.0,84369.0,0.237052]
[1743173243315,0.02400403,84372.0,84367.0,0.237056]
[1743173243533,0.02400403,84372.0,84371.0,0.2489]
[1743173243865,0.02900403,84372.0,84371.0,0.2489]
[1743173244034,0.03400403,84372.0,84371.0,0.2489]
[1743173244451,0.02900403,84372.0,84371.0,0.2489]
[1743173244657,0.0103382,84372.0,84371.0,0.2489]
[1743173245050,0.0053382,84372.0,84371.0,0.2489]
[1743173245387,0.0053382,84372.0,84371.0,0.3242]
[1743173245595,0.0103382,84372.0,84371.0,0.3242]
[1743173245816,0.0053382,84372.0,84371.0,0.3242]
[1743173246021,0.0053382,84372.0,84371.0,0.2489]
[1743173246230,0.0033382,84372.0,84371.0,0.237048]
[1743173246638,0.0003382,84372.0,84371.0,0.2489]
[1743173246810,0.0053382,84372.0,84371.0,0.2489]
[1743173247259,0.0053382,84372.0,84371.0,0.36315764]
[1743173247466,0.0023382,84372.0,84371.0,0.2489]
[1743173247671,0.0043382,84372.0,84371.0,0.2489]
[1743173248468,0.0043382,84372.0,84371.0,0.44235764]
[1743173249699,0.0023382,84372.0,84371.0,0.71121164]
[1743173249960,0.0003382,84372.0,84371.0,0.71121164]
[1743173251670,0.2,84373.0,84371.0,0.71121164]
[1743173251671,2e-07,84373.0,84372.0,0.248897]
[1743173251827,2e-07,84373.0,84372.0,0.36315464]
[1743173253200,2e-07,84373.0,84372.0,0.248897]
[1743173253931,0.0003384,84373.0,84372.0,0.248897]
[1743173254820,0.0003384,84373.0,84372.0,0.36315464]
[1743173261567,0.0003384,84373.0,84372.0,0.49995464]
[1743173265044,0.0003384,84373.0,84372.0,0.237045]
[1743173265277,0.0451,84372.0,84354.0,0.011854]
[1743173265480,0.011852,84370.0,84360.0,0.011853]
[1743173265682,0.4175307,84372.0,84371.0,0.2489]
[1743173266136,0.4175307,84372.0,84371.0,0.237048]
[1743173266333,0.011852,84370.0,84362.0,0.237072]
[1743173266540,0.011852,84370.0,84366.0,0.237062]
[1743173266740,0.237056,84369.0,84365.0,0.248917]
[1743173266991,0.4550224,84372.0,84371.0,0.2489]
[1743173266992,0.4195307,84372.0,84371.0,0.2489]
[1743173267444,0.4175307,84372.0,84371.0,0.2489]
[1743173267842,0.02433912,84373.0,84371.0,0.2489]
[1743173267843,0.0003384,84373.0,84372.0,0.248897]
[1743173268631,0.0003384,84373.0,84368.0,0.011852]
[1743173268837,0.0003384,84373.0,84366.0,0.23706]
[1743173268838,0.002,84372.0,84366.0,0.23706]
[1743173269045,0.002,84372.0,84365.0,0.248918]
[1743173269454,0.002,84372.0,84370.0,0.23705]
[1743173269658,0.002,84372.0,84371.0,0.36315764]
[1743173269796,0.0023384,84373.0,84371.0,0.36315764]
[1743173269797,0.0023384,84373.0,84372.0,0.248897]
[1743173270018,0.0023384,84373.0,84372.0,1.50144464]
[1743173270224,0.0023384,84373.0,84372.0,1.80144464]
[1743173270225,0.0043384,84373.0,84372.0,1.80144464]
[1743173270427,0.0003384,84373.0,84372.0,1.07311364]
[1743173270672,0.0003384,84373.0,84372.0,1.12558064]
[1743173270872,0.0003384,84373.0,84372.0,0.88321364]
[1743173271531,0.0003384,84373.0,84372.0,0.76346964]
[1743173271742,0.0003384,84373.0,84372.0,1.27718264]
[1743173272810,0.0003384,84373.0,84372.0,1.2893605]
[1743173273003,4e-07,84373.0,84372.0,1.6908605]
[1743173273205,4e-07,84373.0,84372.0,0.9142325]
[1743173275300,4e-07,84373.0,84372.0,1.18377335]
[1743173275507,4e-07,84373.0,84372.0,1.26872022]
[1743173275703,4e-07,84373.0,84372.0,1.27172022]
[1743173276171,4e-07,84373.0,84372.0,1.00217937]
[1743173276369,4e-07,84373.0,84372.0,0.9622325]
[1743173276767,4e-07,84373.0,84372.0,0.8288325]
[1743173276982,4e-07,84373.0,84372.0,0.9665125]
[1743173280453,4e-07,84373.0,84372.0,1.54993335]
[1743173280656,4e-07,84373.0,84372.0,1.58688702]
[1743173280884,0.0118035,84417.0,84416.0,0.248767]
[1743173281060,0.0118035,84417.0,84413.0,0.011846]
[1743173281061,0.7027457,84419.0,84414.0,0.236927]
[1743173281397,0.23693,84413.0,84410.0,0.248783]
[1743173281647,0.011846,84415.0,84404.0,0.13748]
[1743173281845,0.56888,84446.0,84383.0,0.01185]
[1743173281846,0.011849,84392.0,84383.0,0.01185]
[1743173282043,0.011849,84392.0,84385.0,0.01185]
[1743173282266,0.248846,84390.0,84386.0,0.237006]
[1743173282463,0.236997,84390.0,84387.0,0.237002]
[1743173282744,0.0792,84391.0,84386.0,0.01185]
[1743173282946,0.01185,84387.0,84380.0,0.248872]
[1743173283195,0.237037,84375.0,84371.0,0.0001691]
[1743173283383,0.011851,84376.0,84371.0,0.0001691]
[1743173283596,0.248897,84372.0,84371.0,0.0001691]
[1743173284038,1.08068534,84372.0,84371.0,0.0001691]
[1743173284241,1.15708534,84372.0,84371.0,0.0001691]
[1743173284451,1.0428277,84372.0,84371.0,0.0001691]
[1743173284669,0.4175307,84372.0,84371.0,0.0001691]
[1743173284875,0.4175307,84372.0,84371.0,0.0120211]
[1743173285081,0.1276,84388.0,84372.0,0.248897]
[1743173285082,0.01159703,84382.0,84372.0,0.248897]
[1743173285285,0.011851,84377.0,84372.0,0.011852]
[1743173285487,0.002,84372.0,84371.0,0.36332474]
[1743173285840,0.237027,84379.0,84374.0,0.237037]
[1743173286097,0.237032,84377.0,84373.0,0.237041]
[1743173286310,0.001,84372.0,84371.0,0.0001691]
[1743173286657,0.5095624,84372.0,84371.0,0.0001691]
[1743173286860,0.001,84372.0,84371.0,0.0001691]
[1743173287063,0.02690978,84379.0,84374.0,0.011851]
[1743173287271,0.3,84378.0,84374.0,0.011851]
[1743173287470,0.02690978,84379.0,84378.0,0.237028]
[1743173287717,0.02690978,84379.0,84376.0,0.237032]
[1743173287916,0.02690978,84379.0,84375.0,0.237035]
[1743173288116,0.02390978,84379.0,84376.0,0.011851]
[1743173288677,0.02390978,84379.0,84371.0,0.0120211]
[1743173288678,0.011852,84373.0,84371.0,0.0001691]
[1743173288884,0.011851,84376.0,84371.0,0.2372171]
[1743173289087,0.237044,84373.0,84371.0,0.0001691]
[1743173289287,0.31470476,84372.0,84371.0,0.0001691]
[1743173289448,0.42610964,84372.0,84371.0,0.0001691]
[1743173291210,0.316852,84372.0,84371.0,0.0001691]
[1743173292495,0.321852,84372.0,84371.0,0.0001691]
[1743173292703,0.7393827,84372.0,84371.0,0.0001691]
[1743173292909,0.7275307,84372.0,84371.0,0.0001691]
[1743173293123,0.4275307,84372.0,84371.0,0.0120211]
[1743173293322,0.4275307,84372.0,84371.0,0.0001691]
[1743173293532,0.4393827,84372.0,84371.0,0.0001691]
[1743173293748,1.06852336,84372.0,84371.0,1e-07]
[1743173293965,1.06352336,84372.0,84371.0,1e-07]
[1743173294379,1.05852336,84372.0,84371.0,1e-07]